bitfinex-derivatives/quotes_BNBF0:USTF0_20250507
["timestamp","ask_amount","ask_price","bid_price","bid_amount"]
[1746644765820,0.29003988,600.27,599.41,1.86366143]
[1746644766218,0.33291718,600.75,599.41,1.86366143]
[1746644766417,0.29003988,600.27,599.41,1.86366143]
[1746644766619,0.33291718,600.75,599.41,1.86366143]
[1746644766820,0.29003021,600.31,599.41,1.86366143]
[1746644767121,0.33291718,600.75,599.41,1.86366143]
[1746644767520,0.29003021,600.31,599.41,2.36766143]
[1746644767823,0.30615992,600.74,599.41,2.36766143]
[1746644768020,0.29003021,600.31,599.41,2.36766143]
[1746644768223,0.30615992,600.74,599.41,2.36766143]
[1746644768523,0.29003142,600.31,599.41,2.36766143]
[1746644768825,0.33291718,600.75,599.41,2.36766143]
[1746644769022,0.29003142,600.31,599.41,2.36766143]
[1746644769219,0.33291718,600.75,599.41,2.36766143]
[1746644769525,0.29003021,600.31,599.41,2.36766143]
[1746644769724,0.3061555,600.74,599.41,2.36766143]
[1746644770125,0.29003021,600.31,599.41,2.36766143]
[1746644770327,0.3061555,600.74,599.41,2.36766143]
[1746644770328,0.33291718,600.75,599.41,2.36766143]
[1746644770520,0.29003142,600.31,599.41,2.36766143]
[1746644770826,0.33291718,600.75,599.41,2.36766143]
[1746644771027,0.29003021,600.31,599.41,2.36766143]
[1746644771327,0.33291718,600.75,599.41,2.36766143]
[1746644771627,0.29003142,600.31,599.41,2.36766143]
[1746644771826,0.33291718,600.75,599.41,2.36766143]
[1746644772127,0.29003021,600.31,599.41,2.36766143]
[1746644772424,0.33291718,600.75,599.41,2.36766143]
[1746644772627,0.29003021,600.31,599.41,2.36766143]
[1746644772922,0.33291718,600.75,599.41,2.36766143]
[1746644773129,0.29003142,600.31,599.41,2.36766143]
[1746644773427,0.33291718,600.75,599.41,2.36766143]
[1746644773825,0.29003021,600.31,599.41,2.36766143]
[1746644774026,0.30616908,600.74,599.41,2.36766143]
[1746644774325,0.29003021,600.31,599.41,2.36766143]
[1746644774529,0.33291718,600.75,599.41,2.36766143]
[1746644774724,0.29004109,600.3,599.41,2.36766143]
[1746644775027,0.33291718,600.75,599.41,2.36766143]
[1746644775228,0.29004713,600.29,599.41,2.36766143]
[1746644775528,0.33291718,600.75,599.41,2.36766143]
[1746644775728,0.30619465,600.74,599.41,2.36766143]
[1746644776326,0.29004955,600.73,599.41,2.36766143]
[1746644776722,0.30619465,600.74,599.41,2.36766143]
[1746644776927,0.29005801,600.72,599.41,2.36766143]
[1746644777429,0.30621869,600.71,599.41,2.36766143]
[1746644778031,0.33294489,600.7,599.41,2.36766143]
[1746644778424,0.30621869,600.69,599.41,2.36766143]
[1746644778827,0.33294489,600.7,599.41,2.36766143]
[1746644779027,0.33295598,600.68,599.41,2.36766143]
[1746644779531,0.30621788,600.67,599.41,2.36766143]
[1746644779726,0.6391794,600.67,599.41,2.36766143]
[1746644780230,0.30621788,600.66,599.41,2.36766143]
[1746644782931,0.29006647,600.65,599.41,2.36766143]
[1746644783125,0.30621788,600.64,599.41,2.36766143]
[1746644785837,0.30621788,600.66,599.41,2.36766143]
[1746644786037,0.29006889,600.63,599.41,2.36766143]
[1746644786537,0.30621788,600.62,599.41,2.36766143]
[1746644787938,0.29006889,600.63,599.41,2.36766143]
[1746644788447,0.30620653,600.62,599.41,2.36766143]
[1746644791952,0.29006768,600.61,599.41,2.36766143]
[1746644792445,0.30620653,600.6,599.41,2.36766143]
[1746644794952,0.29007856,600.59,599.41,2.36766143]
[1746644795252,0.30620653,600.58,599.41,2.36766143]
[1746644797947,0.29008098,600.57,599.41,2.36766143]
[1746644798149,0.30620653,600.56,599.41,2.36766143]
[1746644802951,0.29008098,600.57,599.41,2.36766143]
[1746644803256,0.30623354,600.56,599.41,2.36766143]
[1746644804955,0.29008098,600.57,599.41,2.36766143]
[1746644805357,0.30622786,600.56,599.41,2.36766143]
[1746644807057,0.2900834,600.55,599.41,2.36766143]
[1746644807458,0.30622786,600.54,599.41,2.36766143]
[1746644809961,0.29008582,600.53,599.41,2.36766143]
[1746644810359,0.30622786,600.52,599.41,2.36766143]
[1746644812859,0.30622786,600.65,599.41,2.36766143]
[1746644813159,0.29008824,600.51,599.41,2.36766143]
[1746644813364,0.30622786,600.65,599.41,2.36766143]
[1746644813560,0.62305067,600.64,599.41,2.36766143]
[1746644814163,0.30622357,600.63,599.41,2.36766143]
[1746644814463,0.62305067,600.64,599.41,2.36766143]
[1746644815663,0.33297815,600.64,599.41,2.36766143]
[1746644815963,0.29006768,600.63,599.41,2.36766143]
[1746644818664,0.33297815,600.64,599.41,2.36766143]
[1746644818967,0.29006768,600.62,599.41,2.36766143]
[1746644821666,0.33297815,600.64,599.41,2.36766143]
[1746644821866,0.33297815,600.64,599.41,0.33366143]
[1746644822070,0.29006768,600.61,599.41,0.33366143]
[1746644824674,0.29006768,600.61,599.41,1.44066143]
[1746644824973,0.29006768,600.61,599.41,1.92266143]
[1746644825172,0.29006768,600.61,599.41,2.51466143]
[1746644826676,0.30619732,600.6,599.41,2.51466143]
[1746644827990,0.29007131,600.59,599.41,2.51466143]
[1746644830680,0.33297815,600.64,599.41,2.51466143]
[1746644830977,0.29006768,600.58,599.41,2.51466143]
[1746644832588,0.30619454,600.57,599.41,2.51466143]
[1746644833978,0.29007494,600.56,599.41,2.51466143]
[1746644834578,0.30619454,600.55,599.41,2.51466143]
[1746644836475,0.29007494,600.56,599.41,2.51466143]
[1746644842680,0.31842017,600.77,599.41,2.51466143]
[1746644842983,0.28995771,600.6,599.41,2.51466143]
[1746644843283,0.31842017,600.77,599.41,2.51466143]
[1746644843485,0.28996496,600.59,599.41,2.51466143]
[1746644843785,0.31842017,600.77,599.41,2.51466143]
[1746644843989,0.28996496,600.58,599.41,2.51466143]
[1746644844286,0.31842017,600.77,599.41,2.51466143]
[1746644844586,0.28996496,600.57,599.41,2.51466143]
[1746644844788,0.31842017,600.77,599.41,2.51466143]
[1746644845086,0.28996496,600.57,599.41,2.51466143]
[1746644845285,0.31842017,600.77,599.41,2.51466143]
[1746644845586,0.28996496,600.57,599.41,2.51466143]
[1746644845786,0.31842017,600.77,599.41,2.51466143]
[1746644846087,0.28996496,600.57,599.41,2.51466143]
[1746644846388,0.31842017,600.77,599.41,2.51466143]
[1746644846589,0.28996496,600.57,599.41,2.51466143]
[1746644846888,0.31842017,600.77,599.41,2.51466143]
[1746644847088,0.28996496,600.57,599.41,2.51466143]
[1746644847489,0.31842017,600.77,599.41,2.51466143]
[1746644847691,0.28996496,600.57,599.41,2.51466143]
[1746644847894,0.31842017,600.77,599.41,2.51466143]
[1746644848191,0.28997584,600.56,599.41,2.51466143]
[1746644848389,0.30603739,600.76,599.41,2.51466143]
[1746644848690,0.28997584,600.55,599.41,2.51466143]
[1746644849093,0.31842017,600.77,599.41,2.51466143]
[1746644849294,0.28997584,600.54,599.41,2.51466143]
[1746644849493,0.31842017,600.77,599.41,2.51466143]
[1746644849794,0.28997463,600.53,599.41,2.51466143]
[1746644849988,0.30604377,600.76,599.41,2.51466143]
[1746644850292,0.28997463,600.53,599.41,2.51466143]
[1746644850491,0.30604377,600.76,599.41,2.51466143]
[1746644850692,0.31842017,600.77,599.41,2.51466143]
[1746644850890,0.28997584,600.53,599.41,2.51466143]
[1746644851096,0.31842017,600.77,599.41,2.51466143]
[1746644851291,0.28997463,600.53,599.41,2.51466143]
[1746644851795,0.30604377,600.76,599.41,2.51466143]
[1746644851997,0.28997463,600.53,599.41,2.51466143]
[1746644852198,0.31842017,600.77,599.41,2.51466143]
[1746644852395,0.28997463,600.53,599.41,2.51466143]
[1746644852697,0.31842017,600.77,599.41,2.51466143]
[1746644852993,0.28997463,600.53,599.41,2.51466143]
[1746644853197,0.31842017,600.77,599.41,2.51466143]
[1746644853498,0.28997463,600.53,599.41,2.51466143]
[1746644853698,0.31842017,600.77,599.41,2.51466143]
[1746644853998,0.28997463,600.53,599.41,2.51466143]
[1746644854298,0.31842017,600.77,599.41,2.51466143]
[1746644854499,0.28997463,600.53,599.41,2.51466143]
[1746644854900,0.31842017,600.77,599.41,2.51466143]
[1746644855095,0.28997463,600.53,599.41,2.51466143]
[1746644855396,0.31842017,600.77,599.41,2.51466143]
[1746644855596,0.28997463,600.53,599.41,2.51466143]
[1746644855798,0.31842017,600.77,599.41,2.51466143]
[1746644856099,0.28997463,600.53,599.41,2.51466143]
[1746644856299,0.31842017,600.77,599.41,2.51466143]
[1746644856696,0.28997463,600.53,599.41,2.51466143]
[1746644856895,0.31842017,600.77,599.41,2.51466143]
[1746644857200,0.28997463,600.53,599.41,2.51466143]
[1746644857394,0.31842017,600.77,599.41,2.51466143]
[1746644857599,0.28997463,600.53,599.41,2.51466143]
[1746644857900,0.31842017,600.77,599.41,2.51466143]
[1746644858098,0.28997463,600.53,599.41,2.51466143]
[1746644858398,0.31842017,600.77,599.41,2.51466143]
[1746644858598,0.28997463,600.53,599.41,2.51466143]
[1746644859002,0.30604335,600.76,599.41,2.51466143]
[1746644859204,0.28997463,600.53,599.41,2.51466143]
[1746644859403,0.31842017,600.77,599.41,2.51466143]
[1746644859802,0.28997463,600.53,599.41,2.51466143]
[1746644860104,0.31842017,600.77,599.41,2.51466143]
[1746644860403,0.28997584,600.53,599.41,2.51466143]
[1746644860604,0.31842017,600.77,599.41,2.51466143]
[1746644860806,0.59601431,600.76,599.41,2.51466143]
[1746644861104,0.30604331,600.75,599.41,2.51466143]
[1746644863708,0.289971,600.76,599.41,2.51466143]
[1746644864007,0.30604583,600.75,599.41,2.51466143]
[1746644864608,0.30604583,600.75,599.41,0.33366143]
[1746644867009,0.29002779,600.74,599.41,0.33366143]
[1746644869106,0.29002779,600.74,599.41,1.45166143]
[1746644869713,0.31842017,600.77,599.41,1.45166143]
[1746644870008,0.28997463,600.73,599.41,1.45166143]
[1746644870212,0.28997463,600.73,599.41,2.76566143]
[1746644872717,0.31842017,600.77,599.41,2.76566143]
[1746644873018,0.28993597,600.72,599.41,2.76566143]
[1746644875721,0.31842017,600.77,599.41,2.76566143]
[1746644876117,0.28993597,600.71,599.41,2.76566143]
[1746644876918,0.31842017,600.77,599.41,2.76566143]
[1746644900533,0.31842017,600.77,599.41,2.432]
[1746644916437,0.31842017,600.77,599.51,0.74]
[1746644916840,0.31842017,600.77,599.52,0.746]
[1746644917442,0.31842017,600.77,599.52,1.446]
[1746644917939,0.31842017,600.77,599.55,1.05375536]
[1746644919441,0.31842017,600.77,599.58,1.05375536]
[1746644922439,0.31842017,600.77,599.6,1.05375536]
[1746644924444,0.31842017,600.77,599.55,1.05375536]
[1746644926947,0.31842017,600.77,599.57,1.05375536]
[1746644932449,0.31842017,600.77,599.53,1.05375536]
[1746644934049,0.31842017,600.77,599.55,1.05375536]
[1746644936053,0.31842017,600.77,599.56,1.05375536]
[1746644938355,0.31842017,600.77,599.52,2.17]
[1746644939455,0.31842017,600.77,599.52,2.836]
[1746644940756,0.31842017,600.77,599.54,1.05375536]
[1746644943254,0.31842017,600.77,599.56,1.05375536]
[1746644945257,0.31842017,600.77,599.56,1.67975536]
[1746644946257,0.31842017,600.77,599.62,1.05375536]
[1746644948258,0.31842017,600.77,599.66,1.05375536]
[1746644948657,0.31842017,600.77,599.66,1.89875536]
[1746644951058,0.31842017,600.77,599.66,0.845]
[1746644951555,0.31842017,600.77,599.66,1.386]
[1746644953461,0.31842017,600.77,599.67,1.05375536]
[1746644955760,0.31842017,600.77,599.66,1.386]
[1746644957258,0.31842017,600.77,599.66,2.074]
[1746644957464,0.31842017,600.77,599.7,1.05375536]
[1746644960261,0.31842017,600.77,599.66,2.074]
[1746644969071,0.2899082,600.76,599.66,2.074]
[1746644971877,0.31842017,600.77,599.66,2.074]
[1746644972079,0.28992027,600.75,599.66,2.074]
[1746644974782,0.31842017,600.77,599.66,2.074]
[1746644975083,0.28992993,600.74,599.66,2.074]
[1746644980790,0.31842017,600.77,599.66,2.074]
[1746644981490,0.28994322,600.76,599.66,2.074]
[1746644983791,0.31842017,600.77,599.66,2.074]
[1746644984086,0.28994684,600.75,599.66,2.074]
[1746644985290,0.28994684,600.75,599.66,2.689]
[1746644986801,0.31842017,600.77,599.66,2.689]
[1746644987098,0.28994684,600.74,599.66,2.689]
[1746644989803,0.31842017,600.77,599.66,2.689]
[1746644990103,0.28994684,600.73,599.66,2.689]
[1746644992803,0.31842017,600.77,599.66,2.689]
[1746644993206,0.28994805,600.76,599.66,2.689]
[1746644995806,0.31842017,600.77,599.66,2.689]
[1746644996206,0.28994805,600.76,599.66,2.689]
[1746644998803,0.31842017,600.77,599.66,2.689]
[1746644999007,0.30605068,600.76,599.66,2.689]
[1746644999309,0.59599873,600.76,599.66,2.689]
[1746644999809,0.30605068,600.75,599.66,2.689]
[1746645000403,0.28994805,600.76,599.66,2.689]
[1746645001108,0.30605007,600.75,599.66,2.689]
[1746645002210,0.30605007,600.76,599.66,2.689]
[1746645002409,0.28995167,600.74,599.66,2.689]
[1746645003009,0.30605007,600.73,599.66,2.689]
[1746645004813,0.31842017,600.77,599.66,2.689]
[1746645005112,0.28996979,600.72,599.66,2.689]
[1746645007813,0.31842017,600.77,599.66,2.689]
[1746645008009,0.28996617,600.71,599.66,2.689]
[1746645010815,0.31842017,600.77,599.66,2.689]
[1746645011008,0.28996617,600.7,599.66,2.689]
[1746645013817,0.31842017,600.77,599.66,2.689]
[1746645014213,0.28997584,600.69,599.66,2.689]
[1746645014517,0.30610878,600.76,599.66,2.689]
[1746645014720,0.28997584,600.68,599.66,2.689]
[1746645015018,0.30610878,600.76,599.66,2.689]
[1746645015219,0.59608582,600.67,599.66,2.689]
[1746645015518,0.30610878,600.66,599.66,2.689]
[1746645015718,0.5960967,600.66,599.66,2.689]
[1746645015919,0.28998792,600.66,599.66,2.689]
[1746645016219,0.30610878,600.65,599.66,2.689]
[1746645017018,0.28998913,600.64,599.66,2.689]
[1746645017520,0.30610878,600.63,599.66,2.689]
[1746645020125,0.28999154,600.62,599.66,2.689]
[1746645020424,0.30610878,600.61,599.66,2.689]
[1746645023024,0.28999396,600.6,599.66,2.689]
[1746645025840,1.2642602,601.17,599.66,2.689]
[1746645026126,0.59602998,600.59,599.66,2.689]
[1746645026326,0.30610246,600.59,599.66,2.689]
[1746645026622,0.28999758,600.58,599.66,2.689]
[1746645028823,1.2642602,601.14,599.66,2.689]
[1746645029024,0.30611503,600.57,599.66,2.689]
[1746645029225,0.59604617,600.57,599.66,2.689]
[1746645029426,0.30611503,600.56,599.66,2.689]
[1746645029622,0.59611503,600.56,599.66,2.689]
[1746645029926,0.29,600.56,599.66,2.689]
[1746645030331,0.30611503,600.55,599.66,2.689]
[1746645032129,0.29002538,600.54,599.66,2.689]
[1746645032931,0.30611503,600.53,599.66,2.689]
[1746645033234,0.29002538,600.54,599.66,2.689]
[1746645034826,1.2642602,601.8,599.66,2.689]
[1746645035025,0.28986835,600.53,599.66,2.689]
[1746645035330,1.2642602,601.8,599.66,2.689]
[1746645035530,0.30615932,601.79,599.66,2.689]
[1746645035730,0.28986835,600.52,599.66,2.689]
[1746645035930,0.33239708,601.69,599.66,2.689]
[1746645036130,0.28988163,600.51,599.66,2.689]
[1746645036330,0.30615932,601.68,599.66,2.689]
[1746645036632,0.28988163,600.5,599.66,2.689]
[1746645037132,0.28988284,600.49,599.66,2.689]
[1746645040834,0.33239708,601.69,599.66,2.689]
[1746645041031,0.30616309,601.68,599.66,2.689]
[1746645041233,0.30616309,601.67,599.66,2.689]
[1746645041635,0.30616309,601.66,599.66,2.689]
[1746645041838,0.30616309,601.65,599.66,2.689]
[1746645042035,0.30616309,601.64,599.66,2.689]
[1746645042435,0.30616309,601.63,599.66,2.689]
[1746645042632,0.30616309,601.62,599.66,2.689]
[1746645042837,0.30616309,601.61,599.66,2.689]
[1746645043037,0.30616309,601.6,599.66,2.689]
[1746645043338,0.30616309,601.59,599.66,2.689]
[1746645043633,0.30616309,601.58,599.66,2.689]
[1746645043835,0.30616309,601.57,599.66,2.689]
[1746645044140,1.2642602,601.4,599.66,2.689]
[1746645044334,0.33256842,601.38,599.66,2.689]
[1746645044639,0.30616309,601.37,599.66,2.689]
[1746645044835,0.30616309,601.36,599.66,2.689]
[1746645045136,0.30616309,601.35,599.66,2.689]
[1746645045338,0.30616309,601.34,599.66,2.689]
[1746645045640,0.33256842,601.38,599.66,2.689]
[1746645045941,0.30615187,601.37,599.66,2.689]
[1746645046140,0.30615187,601.36,599.66,2.689]
[1746645046442,0.30615187,601.35,599.66,2.689]
[1746645046642,0.30615187,601.34,599.66,2.689]
[1746645046841,0.3326016,601.32,599.66,2.689]
[1746645047340,0.59607576,601.31,599.66,2.689]
[1746645047642,0.30615187,601.3,599.66,2.689]
[1746645047941,0.30615187,601.29,599.66,2.689]
[1746645048142,0.30615187,601.28,599.66,2.689]
[1746645048343,0.30615187,601.27,599.66,2.689]
[1746645048639,0.30615187,601.26,599.66,2.689]
[1746645048840,0.30615187,601.25,599.66,2.689]
[1746645049139,0.30615187,601.24,599.66,2.689]
[1746645049344,0.30615187,601.23,599.66,2.689]
[1746645049639,0.28992389,601.31,599.66,2.689]
[1746645049640,0.30615187,601.22,599.66,2.689]
[1746645049844,0.30615187,601.21,599.66,2.689]
[1746645050144,0.30615187,601.2,599.66,2.689]
[1746645050340,0.30615187,601.19,599.66,2.689]
[1746645050538,0.30615187,601.18,599.66,2.689]
[1746645050743,0.33268459,601.17,599.66,2.689]
[1746645050941,0.63883646,601.17,599.66,2.689]
[1746645051141,0.30615187,601.16,599.66,2.689]
[1746645051342,0.3327012,601.14,599.66,2.689]
[1746645051545,0.30615187,601.13,599.66,2.689]
[1746645051745,0.3327178,601.11,599.66,2.689]
[1746645052048,0.30615187,601.1,599.66,2.689]
[1746645052251,0.33273441,601.08,599.66,2.689]
[1746645052549,0.30615187,601.07,599.66,2.689]
[1746645056246,0.28996979,601.06,599.66,2.689]
[1746645056548,0.30615187,601.05,599.66,2.689]
[1746645059145,0.28997221,601.04,599.66,2.689]
[1746645059450,0.30615187,601.03,599.66,2.689]
[1746645062044,0.30615187,601.07,599.66,2.689]
[1746645062346,0.28997463,601.02,599.66,2.689]
[1746645062854,0.30615187,601.01,599.66,2.689]
[1746645065050,0.30615187,601.07,599.66,2.689]
[1746645065251,0.28997704,601.0,599.66,2.689]
[1746645065747,0.30615187,600.99,599.66,2.689]
[1746645068150,0.28998429,600.98,599.66,2.689]
[1746645068654,0.30615187,600.97,599.66,2.689]
[1746645071155,0.29000121,600.96,599.66,2.689]
[1746645071758,0.30615187,600.95,599.66,2.689]
[1746645072457,0.29000121,600.96,599.66,2.689]
[1746645072756,0.30619447,600.95,599.66,2.689]
[1746645074052,0.29001088,600.94,599.66,2.689]
[1746645074655,0.30619447,600.93,599.66,2.689]
[1746645077060,0.29001329,600.92,599.66,2.689]
[1746645077555,0.30619447,600.91,599.66,2.689]
[1746645078657,0.29001329,600.92,599.66,2.689]
[1746645079062,0.30621326,600.91,599.66,2.689]
[1746645083056,0.29001571,600.9,599.66,2.689]
[1746645083862,0.30621326,600.89,599.66,2.689]
[1746645084264,0.30621326,600.88,599.66,2.689]
[1746645084566,0.30621326,600.87,599.66,2.689]
[1746645084759,0.30621326,600.89,599.66,2.689]
[1746645086063,0.29003263,600.88,599.66,2.689]
[1746645086365,0.30621326,600.87,599.66,2.689]
[1746645087167,0.29003263,600.88,599.66,2.689]
[1746645087666,0.30626769,600.87,599.66,2.689]
[1746645088266,0.30626769,600.86,599.66,2.689]
[1746645088661,0.30626769,600.85,599.66,2.689]
[1746645088963,0.30626769,600.84,599.66,2.689]
[1746645089467,0.30626769,600.83,599.66,2.689]
[1746645089762,0.30626769,600.87,599.66,2.689]
[1746645090069,0.29003263,600.88,599.66,2.689]
[1746645090366,0.30627,600.87,599.66,2.689]
[1746645090767,0.30627,600.86,599.66,2.689]
[1746645091067,0.30627,600.87,599.66,2.689]
[1746645092067,0.30627,601.03,599.66,2.689]
[1746645092466,0.29003505,600.86,599.66,2.689]
[1746645092662,0.30627,601.03,599.66,2.689]
[1746645092965,0.30627,600.85,599.66,2.689]
[1746645093468,0.59630505,601.02,599.66,2.689]
[1746645093768,0.30627,601.01,599.66,2.689]
[1746645095170,0.29003746,601.0,599.66,2.689]
[1746645096170,0.30627,600.99,599.66,2.689]
[1746645098171,0.29003988,600.98,599.66,2.689]
[1746645098371,0.59630988,600.98,599.66,2.689]
[1746645098567,0.30627,600.97,599.66,2.689]
[1746645101174,0.29003505,600.96,599.66,2.689]
[1746645102975,0.30627,600.95,599.66,2.689]
[1746645104176,0.29003746,600.94,599.66,2.689]
[1746645104476,0.30627,600.93,599.66,2.689]
[1746645105977,0.30627,600.92,599.66,2.689]
[1746645106170,0.30627,600.91,599.66,2.689]
[1746645106477,0.30627,600.9,599.66,2.689]
[1746645106771,0.30627,600.89,599.66,2.689]
[1746645107272,0.30627,600.88,599.66,2.689]
[1746645107572,0.30627,600.87,599.66,2.689]
[1746645108077,0.30627,600.86,599.66,2.689]
[1746645108474,0.30627,600.85,599.66,2.689]
[1746645108974,0.30627,600.84,599.66,2.689]
[1746645109580,0.30627,600.83,599.66,2.689]
[1746645109880,1.2642602,600.96,599.66,2.689]
[1746645110180,0.29004592,600.82,599.66,2.689]
[1746645110380,0.30626748,600.95,599.66,2.689]
[1746645110676,0.59630615,600.81,599.66,2.689]
[1746645110883,0.30626748,600.94,599.66,2.689]
[1746645111179,0.29005559,600.8,599.66,2.689]
[1746645111484,0.30626748,600.93,599.66,2.689]
[1746645111780,1.02432995,601.08,599.66,2.689]
[1746645111781,0.29004109,600.79,599.66,2.689]
[1746645111979,1.2642602,600.9,599.66,2.689]
[1746645112182,0.30626748,600.78,599.66,2.689]
[1746645112383,0.30626748,600.89,599.66,2.689]
[1746645113086,0.29004472,600.88,599.66,2.689]
[1746645113479,0.30626748,600.87,599.66,2.689]
[1746645116184,0.29004713,600.86,599.66,2.689]
[1746645116504,0.30626748,600.85,599.66,2.689]
[1746645119088,0.29004955,600.84,599.66,2.689]
[1746645119286,0.30626748,600.83,599.66,2.689]
[1746645121687,0.29004955,600.84,599.66,2.689]
[1746645121888,0.33273441,601.08,599.66,2.689]
[1746645122083,0.30627271,600.83,599.66,2.689]
[1746645122289,0.29002296,600.83,599.66,2.689]
[1746645122482,0.30627271,601.07,599.66,2.689]
[1746645122784,0.59629567,600.82,599.66,2.689]
[1746645122988,0.30627271,600.82,599.66,2.689]
[1746645123288,0.30627271,600.81,599.66,2.689]
[1746645123884,0.30627271,601.05,599.66,2.689]
[1746645125090,0.30627271,601.04,599.66,2.689]
[1746645125386,0.59629809,601.04,599.66,2.689]
[1746645125586,0.30627271,601.03,599.66,2.689]
[1746645126089,0.30627271,601.02,599.66,2.689]
[1746645126389,0.30627271,601.01,599.66,2.689]
[1746645126789,0.30627271,601.0,599.66,2.689]
[1746645127091,0.30627271,600.99,599.66,2.689]
[1746645127490,0.30627271,601.03,599.66,2.689]
[1746645127787,0.30627271,601.02,599.66,2.689]
[1746645128092,0.30627271,601.01,599.66,2.689]
[1746645128293,0.29002538,601.04,599.66,2.689]
[1746645128692,0.30627185,601.03,599.66,2.689]
[1746645129092,0.30627185,601.02,599.66,2.689]
[1746645129392,0.30627185,601.01,599.66,2.689]
[1746645129693,0.30627185,601.0,599.66,2.689]
[1746645129988,0.30627185,600.99,599.66,2.689]
[1746645130292,0.30627185,600.98,599.66,2.689]
[1746645130791,0.30627185,600.97,599.66,2.689]
[1746645131190,0.30627185,600.96,599.66,2.689]
[1746645131395,0.30627185,600.95,599.66,2.689]
[1746645131796,0.30627185,600.94,599.66,2.689]
[1746645132095,0.30627185,600.93,599.66,2.689]
[1746645132595,0.30627185,600.96,599.66,2.689]
[1746645132794,0.29002779,600.97,599.66,2.689]
[1746645133896,0.3062708,600.96,599.66,2.689]
[1746645134090,0.59629376,600.96,599.66,2.689]
[1746645134891,0.3062708,600.95,599.66,2.689]
[1746645135096,0.3062708,600.94,599.66,2.689]
[1746645135993,0.3062708,600.93,599.66,2.689]
[1746645136494,0.3062708,600.92,599.66,2.689]
[1746645137200,0.59630826,600.91,599.66,2.689]
[1746645137600,0.3062708,600.9,599.66,2.689]
[1746645137795,0.3062708,600.89,599.66,2.689]
[1746645138195,0.3062708,600.88,599.66,2.689]
[1746645138600,0.3062708,600.87,599.66,2.689]
[1746645139002,0.3062708,600.86,599.66,2.689]
[1746645139596,0.3062708,600.85,599.66,2.689]
[1746645139902,0.3062708,600.84,599.66,2.689]
[1746645140103,0.33287839,600.82,599.66,2.689]
[1746645140597,0.3062708,600.81,599.66,2.689]
[1746645140902,0.3062708,600.8,599.66,2.689]
[1746645141202,0.3062708,600.79,599.66,2.689]
[1746645141503,0.3062708,600.78,599.66,2.689]
[1746645141802,0.3062708,600.77,599.66,2.689]
[1746645142104,0.3062708,600.76,599.66,2.689]
[1746645142404,0.3062708,600.75,599.66,2.689]
[1746645142605,0.33292827,600.73,599.66,2.689]
[1746645143303,0.59633486,600.72,599.66,2.689]
[1746645143504,0.3062708,600.71,599.66,2.689]
[1746645143804,0.3062708,600.7,599.66,2.689]
[1746645144105,0.33295044,600.69,599.66,2.689]
[1746645144401,0.63922124,600.69,599.66,2.689]
[1746645144605,0.3062708,600.68,599.66,2.689]
[1746645145101,0.3062708,600.67,599.66,2.689]
[1746645145301,0.3062708,600.66,599.66,2.689]
[1746645145701,0.33297815,600.64,599.66,2.689]
[1746645146302,0.29003867,600.63,599.66,2.689]
[1746645147401,0.33299478,600.61,599.66,2.689]
[1746645155415,0.29001692,600.6,599.66,2.689]
[1746645155615,0.33301142,600.58,599.66,2.689]
[1746645158316,0.28989008,600.57,599.66,2.689]
[1746645158515,0.33302805,600.55,599.66,2.689]
[1746645161219,0.29002417,600.54,599.66,2.689]
[1746645163919,0.33302805,600.55,599.66,2.689]
[1746645164124,0.29002659,600.53,599.66,2.689]
[1746645164825,0.33304469,600.52,599.66,2.689]
[1746645167122,0.290029,600.51,599.66,2.689]
[1746645167829,0.33305578,600.5,599.66,2.689]
[1746645173329,0.28995651,600.49,599.66,2.689]
[1746645173530,0.33306687,600.48,599.66,2.689]
[1746645176237,0.29003384,600.47,599.66,2.689]
[1746645176538,0.33307797,600.46,599.66,2.689]
[1746645179336,0.28991544,600.45,599.66,2.689]
[1746645179537,0.33308906,600.44,599.66,2.689]
[1746645182338,0.29003867,600.43,599.66,2.689]
[1746645182536,0.33310016,600.42,599.66,2.689]
[1746645185137,0.29001933,600.41,599.66,2.689]
[1746645187943,0.33310016,600.42,599.66,2.689]
[1746645240289,1.26985455,600.41,599.66,2.689]